[Event "Early-Titled-Tuesday-Blitz-November-28-2023"]
[Site "Chess.com"]
[Date "2023.11.28"]
[Round "11"]
[White "Grischuk"]
[Black "GHANDEEVAM2003"]
[Result "1-0"]
[WhiteElo "3086"]
[BlackElo "3146"]
[TimeControl "180+1"]
[EndTime "10:12:40 PST"]
[Termination "Grischuk won by resignation"]

1. d4 {[%clk 0:03:00.9]} 1... Nf6 {[%clk 0:02:54.7]} 2. Bf4 {[%clk 0:03:00.7]}
2... g6 {[%clk 0:02:54]} 3. Nd2 {[%clk 0:03:00.5]} 3... d5 {[%clk 0:02:53.4]} 4.
e3 {[%clk 0:03:00.1]} 4... Bg7 {[%clk 0:02:53.9]} 5. Ngf3 {[%clk 0:03:00.2]}
5... O-O {[%clk 0:02:53.9]} 6. h3 {[%clk 0:02:56.5]} 6... c5 {[%clk 0:02:53.8]}
7. c3 {[%clk 0:02:56.6]} 7... b6 {[%clk 0:02:52.1]} 8. Bd3 {[%clk 0:02:48.7]}
8... Bb7 {[%clk 0:02:44.5]} 9. Ne5 {[%clk 0:02:41.2]} 9... Nbd7 {[%clk
0:02:42.1]} 10. O-O {[%clk 0:02:23.7]} 10... Nxe5 {[%clk 0:02:28.3]} 11. Bxe5
{[%clk 0:02:23.5]} 11... Nd7 {[%clk 0:02:29]} 12. Bxg7 {[%clk 0:02:21.9]} 12...
Kxg7 {[%clk 0:02:29.9]} 13. f4 {[%clk 0:02:17.5]} 13... Nf6 {[%clk 0:02:18.1]}
14. Qf3 {[%clk 0:02:12.9]} 14... Qc7 {[%clk 0:02:15.2]} 15. g4 {[%clk
0:02:07.1]} 15... c4 {[%clk 0:02:13.8]} 16. Bc2 {[%clk 0:02:06.7]} 16... b5
{[%clk 0:02:14.5]} 17. g5 {[%clk 0:01:41.8]} 17... Ne8 {[%clk 0:01:55.3]} 18. h4
{[%clk 0:01:28.4]} 18... Nd6 {[%clk 0:01:49.4]} 19. h5 {[%clk 0:01:28.5]} 19...
Rh8 {[%clk 0:01:41.7]} 20. Rae1 {[%clk 0:01:14.7]} 20... Raf8 {[%clk 0:01:36.3]}
21. h6+ {[%clk 0:01:09.5]} 21... Kg8 {[%clk 0:01:36.3]} 22. e4 {[%clk
0:01:09.8]} 22... dxe4 {[%clk 0:01:33.7]} 23. Bxe4 {[%clk 0:01:00.7]} 23... Nxe4
{[%clk 0:01:22.4]} 24. Nxe4 {[%clk 0:01:01.6]} 24... f5 {[%clk 0:01:23.1]} 25.
gxf6 {[%clk 0:00:58.7]} 25... exf6 {[%clk 0:01:24]} 26. Qh3 {[%clk 0:00:46.5]}
26... f5 {[%clk 0:00:54.5]} 27. Ng5 {[%clk 0:00:40.5]} 27... Qd7 {[%clk
0:00:45.7]} 28. Qe3 {[%clk 0:00:33.9]} 28... Be4 {[%clk 0:00:42.4]} 29. Qh3
{[%clk 0:00:28.2]} 29... Qd5 {[%clk 0:00:38.8]} 30. Re3 {[%clk 0:00:28]} 30...
Re8 {[%clk 0:00:35.2]} 31. Rfe1 {[%clk 0:00:27.6]} 31... Kf8 {[%clk 0:00:35.9]}
32. R1e2 {[%clk 0:00:21.1]} 32... Re7 {[%clk 0:00:33.9]} 33. Qg3 {[%clk
0:00:11.2]} 33... Ke8 {[%clk 0:00:29.3]} 34. Qe1 {[%clk 0:00:11.3]} 34... Kd8
{[%clk 0:00:18.6]} 35. Nxe4 {[%clk 0:00:11.8]} 35... fxe4 {[%clk 0:00:19.5]} 36.
Rxe4 {[%clk 0:00:12.7]} 36... Rxe4 {[%clk 0:00:18.4]} 37. Rxe4 {[%clk
0:00:13.6]} 37... Qh5 {[%clk 0:00:19.1]} 38. Qg3 {[%clk 0:00:09.2]} 38... Qxh6
{[%clk 0:00:12.8]} 39. f5 {[%clk 0:00:05.7]} 39... Kd7 {[%clk 0:00:08.7]} 40. f6
{[%clk 0:00:05]} 40... Re8 {[%clk 0:00:05.6]} 41. Rxe8 {[%clk 0:00:04.9]} 41...
Kxe8 {[%clk 0:00:06.5]} 42. Qe5+ {[%clk 0:00:05.1]} 42... Kd7 {[%clk 0:00:05.6]}
43. f7 {[%clk 0:00:04.4]} 43... Qc1+ {[%clk 0:00:03.7]} 44. Kf2 {[%clk 0:00:04]}
44... Qxb2+ {[%clk 0:00:04.4]} 45. Kf3 {[%clk 0:00:03.8]} 45... Qxc3+ {[%clk
0:00:04.6]} 46. Kg4 {[%clk 0:00:03.4]} 46... h5+ {[%clk 0:00:04.6]} 47. Kg5
{[%clk 0:00:03.9]} 47... Qf3 {[%clk 0:00:04.7]} 48. Qg7 {[%clk 0:00:02]} 48...
Qe3+ {[%clk 0:00:02.9]} 49. Kxg6 {[%clk 0:00:02]} 49... Qe4+ {[%clk 0:00:03.4]}
50. Kh6 {[%clk 0:00:02.4]} 50... Qf4+ {[%clk 0:00:03.4]} 51. Kh7 {[%clk
0:00:02.8]} 51... Qe4+ {[%clk 0:00:02.4]} 52. Kg8 {[%clk 0:00:03.2]} 52... Qd5
{[%clk 0:00:02.2]} 53. Qe5 {[%clk 0:00:03.3]} 53... Qxe5 {[%clk 0:00:01.2]} 54.
dxe5 {[%clk 0:00:02.7]} 54... c3 {[%clk 0:00:02.1]} 55. f8=Q {[%clk 0:00:03.2]}
55... c2 {[%clk 0:00:03]} 56. Qc5 {[%clk 0:00:03.5]} 1-0

[Event "Early-Titled-Tuesday-Blitz-November-28-2023"]
[Site "Chess.com"]
[Date "2023.11.28"]
[Round "11"]
[White "averageFM"]
[Black "Chessmissile07"]
[Result "0-1"]
[WhiteElo "2611"]
[BlackElo "2847"]
[TimeControl "180+1"]
[EndTime "10:12:43 PST"]
[Termination "Chessmissile07 won on time"]

1. e4 {[%clk 0:03:00.9]} 1... a6 {[%clk 0:03:00.9]} 2. d4 {[%clk 0:03:00.2]}
2... e6 {[%clk 0:03:01.3]} 3. Nf3 {[%clk 0:03:00.3]} 3... d5 {[%clk 0:02:55.8]}
4. exd5 {[%clk 0:02:57.1]} 4... exd5 {[%clk 0:02:55.6]} 5. Bd3 {[%clk
0:02:57.4]} 5... Bd6 {[%clk 0:02:52.2]} 6. O-O {[%clk 0:02:57.2]} 6... Ne7
{[%clk 0:02:52.1]} 7. c4 {[%clk 0:02:56.6]} 7... dxc4 {[%clk 0:02:51.6]} 8. Bxc4
{[%clk 0:02:56.4]} 8... O-O {[%clk 0:02:52]} 9. Nc3 {[%clk 0:02:56.5]} 9... Nd7
{[%clk 0:02:51.6]} 10. Ne4 {[%clk 0:02:54.4]} 10... Nb6 {[%clk 0:02:51.3]} 11.
Bb3 {[%clk 0:02:54.3]} 11... Bf5 {[%clk 0:02:51.3]} 12. Re1 {[%clk 0:02:52.5]}
12... Bxe4 {[%clk 0:02:47.7]} 13. Rxe4 {[%clk 0:02:52.2]} 13... Ned5 {[%clk
0:02:48.1]} 14. Ne5 {[%clk 0:02:49]} 14... c6 {[%clk 0:02:43.7]} 15. Qh5 {[%clk
0:02:47.2]} 15... g6 {[%clk 0:02:20]} 16. Qh6 {[%clk 0:02:39.4]} 16... Qf6
{[%clk 0:02:20.5]} 17. Bg5 {[%clk 0:02:34.4]} 17... Qg7 {[%clk 0:02:20.5]} 18.
Qh3 {[%clk 0:02:28]} 18... h5 {[%clk 0:02:13.7]} 19. Rae1 {[%clk 0:02:12.9]}
19... Rae8 {[%clk 0:02:05.4]} 20. Bd2 {[%clk 0:01:29.6]} 20... Re6 {[%clk
0:01:28.7]} 21. g4 {[%clk 0:01:27.1]} 21... f6 {[%clk 0:01:04.9]} 22. Nc4 {[%clk
0:01:15.8]} 22... Rxe4 {[%clk 0:01:04.6]} 23. Rxe4 {[%clk 0:01:15.5]} 23... Nxc4
{[%clk 0:01:04.6]} 24. Bxc4 {[%clk 0:01:15]} 24... f5 {[%clk 0:00:59.7]} 25. Re6
{[%clk 0:01:12.7]} 25... hxg4 {[%clk 0:00:50.2]} 26. Qb3 {[%clk 0:01:06.6]}
26... Qxd4 {[%clk 0:00:29]} 27. Bxd5 {[%clk 0:00:58.2]} 27... cxd5 {[%clk
0:00:27.4]} 28. Rxg6+ {[%clk 0:00:55.9]} 28... Kh7 {[%clk 0:00:22.5]} 29. Rxd6
{[%clk 0:00:51.4]} 29... Qxd2 {[%clk 0:00:21.6]} 30. Qxb7+ {[%clk 0:00:50.3]}
30... Kh8 {[%clk 0:00:20.9]} 31. Qxd5 {[%clk 0:00:42.2]} 31... Qxd5 {[%clk
0:00:20.8]} 32. Rxd5 {[%clk 0:00:42]} 32... Kg7 {[%clk 0:00:21.7]} 33. Rd7+
{[%clk 0:00:40.8]} 33... Kg8 {[%clk 0:00:19.8]} 34. Rd6 {[%clk 0:00:40.9]} 34...
a5 {[%clk 0:00:06.3]} 35. b3 {[%clk 0:00:32.2]} 35... Kg7 {[%clk 0:00:05.9]} 36.
Rd5 {[%clk 0:00:30.8]} 36... a4 {[%clk 0:00:04.1]} 37. b4 {[%clk 0:00:28.7]}
37... Kg6 {[%clk 0:00:04.1]} 38. Ra5 {[%clk 0:00:28]} 38... Rc8 {[%clk
0:00:03.1]} 39. Rxa4 {[%clk 0:00:25.2]} 39... Rc1+ {[%clk 0:00:03.1]} 40. Kg2
{[%clk 0:00:25.2]} 40... f4 {[%clk 0:00:03.7]} 41. Ra5 {[%clk 0:00:25.1]} 41...
Rc3 {[%clk 0:00:02.8]} 42. a3 {[%clk 0:00:23.2]} 42... Rb3 {[%clk 0:00:03.1]}
43. b5 {[%clk 0:00:20.6]} 43... Kg5 {[%clk 0:00:03.1]} 44. Kf1 {[%clk
0:00:10.6]} 44... f3 {[%clk 0:00:02.4]} 45. Ke1 {[%clk 0:00:10.8]} 45... Kh4
{[%clk 0:00:03]} 46. a4 {[%clk 0:00:08.8]} 46... Kh3 {[%clk 0:00:02.9]} 47. Ra8
{[%clk 0:00:07.3]} 47... Kg2 {[%clk 0:00:03.1]} 48. Rg8 {[%clk 0:00:06.1]} 48...
Rb4 {[%clk 0:00:03.7]} 49. b6 {[%clk 0:00:05]} 49... Rb1+ {[%clk 0:00:03.3]} 50.
Kd2 {[%clk 0:00:04.1]} 50... Rxb6 {[%clk 0:00:04.2]} 51. Rxg4+ {[%clk
0:00:04.1]} 51... Kxf2 {[%clk 0:00:04.7]} 52. h4 {[%clk 0:00:04.3]} 52... Rb2+
{[%clk 0:00:04.3]} 53. Kc3 {[%clk 0:00:03.9]} 53... Rb1 {[%clk 0:00:04.3]} 54.
Kc4 {[%clk 0:00:02.2]} 54... Ke2 {[%clk 0:00:04.3]} 55. h5 {[%clk 0:00:02.1]}
55... f2 {[%clk 0:00:04.4]} 56. Re4+ {[%clk 0:00:02.4]} 56... Kf3 {[%clk
0:00:04.7]} 0-1

[Event "Early-Titled-Tuesday-Blitz-November-28-2023"]
[Site "Chess.com"]
[Date "2023.11.28"]
[Round "11"]
[White "Fonsofan"]
[Black "FairChess_on_YouTube"]
[Result "0-1"]
[WhiteElo "2790"]
[BlackElo "3086"]
[TimeControl "180+1"]
[EndTime "10:12:46 PST"]
[Termination "FairChess_on_YouTube won by checkmate"]

1. e4 {[%clk 0:03:00.9]} 1... c5 {[%clk 0:02:59.3]} 2. Nf3 {[%clk 0:03:01]} 2...
e6 {[%clk 0:02:57.9]} 3. d3 {[%clk 0:02:59.9]} 3... Nc6 {[%clk 0:02:55.9]} 4. g3
{[%clk 0:02:59.6]} 4... g6 {[%clk 0:02:54.2]} 5. Bg5 {[%clk 0:02:59.6]} 5... Qb6
{[%clk 0:02:48.9]} 6. Nbd2 {[%clk 0:02:59.8]} 6... Bg7 {[%clk 0:02:48.9]} 7. Nc4
{[%clk 0:02:49.1]} 7... Qc7 {[%clk 0:02:48.5]} 8. a4 {[%clk 0:02:41]} 8... h6
{[%clk 0:02:37.3]} 9. Bd2 {[%clk 0:02:31.6]} 9... Nge7 {[%clk 0:02:33.1]} 10.
Bg2 {[%clk 0:02:19.7]} 10... d5 {[%clk 0:02:23.7]} 11. exd5 {[%clk 0:02:18.7]}
11... Nxd5 {[%clk 0:02:23.2]} 12. O-O {[%clk 0:02:17.3]} 12... b6 {[%clk
0:02:12.9]} 13. Re1 {[%clk 0:02:13.7]} 13... O-O {[%clk 0:02:06.3]} 14. Qc1
{[%clk 0:01:57.2]} 14... Kh7 {[%clk 0:02:03.6]} 15. Ne3 {[%clk 0:01:57.7]} 15...
Nxe3 {[%clk 0:01:56.3]} 16. fxe3 {[%clk 0:01:41.5]} 16... Bb7 {[%clk 0:01:50.8]}
17. Bc3 {[%clk 0:01:40.9]} 17... e5 {[%clk 0:01:49]} 18. Rf1 {[%clk 0:01:39.4]}
18... Rad8 {[%clk 0:01:46.2]} 19. Qe1 {[%clk 0:01:25.8]} 19... Nb4 {[%clk
0:01:36.1]} 20. Qe2 {[%clk 0:00:52.7]} 20... e4 {[%clk 0:01:29]} 21. dxe4 {[%clk
0:00:53.6]} 21... Ba6 {[%clk 0:01:27]} 22. Qf2 {[%clk 0:00:49.9]} 22... Bxf1
{[%clk 0:01:20.6]} 23. Rxf1 {[%clk 0:00:46.2]} 23... Bxc3 {[%clk 0:01:14.3]} 24.
bxc3 {[%clk 0:00:47.1]} 24... Nc6 {[%clk 0:01:14.9]} 25. Nh4 {[%clk 0:00:31.7]}
25... Ne5 {[%clk 0:01:09.4]} 26. Bh3 {[%clk 0:00:31.8]} 26... Qe7 {[%clk
0:01:05.7]} 27. Ng2 {[%clk 0:00:29.8]} 27... g5 {[%clk 0:00:42.1]} 28. Ne1
{[%clk 0:00:23.4]} 28... Rd1 {[%clk 0:00:39.6]} 29. Nd3 {[%clk 0:00:16.4]} 29...
Rxf1+ {[%clk 0:00:36]} 30. Kxf1 {[%clk 0:00:15.4]} 30... Kg7 {[%clk 0:00:34.8]}
31. Qf5 {[%clk 0:00:13.8]} 31... Re8 {[%clk 0:00:27.6]} 32. Ke2 {[%clk
0:00:12.5]} 32... Nxd3 {[%clk 0:00:23.3]} 33. cxd3 {[%clk 0:00:13.4]} 33... c4
{[%clk 0:00:23.9]} 34. dxc4 {[%clk 0:00:03.9]} 34... Qxe4 {[%clk 0:00:22.4]} 35.
Qxe4 {[%clk 0:00:04.8]} 35... Rxe4 {[%clk 0:00:22.5]} 36. Kd3 {[%clk 0:00:05.7]}
36... Re5 {[%clk 0:00:23]} 37. Bg2 {[%clk 0:00:05.8]} 37... Kf6 {[%clk
0:00:20.8]} 38. Kd4 {[%clk 0:00:05.2]} 38... Rf5 {[%clk 0:00:14.1]} 39. Bd5
{[%clk 0:00:04.9]} 39... Rf2 {[%clk 0:00:14.4]} 40. h4 {[%clk 0:00:04.3]} 40...
gxh4 {[%clk 0:00:13.4]} 41. gxh4 {[%clk 0:00:05.2]} 41... Rd2+ {[%clk
0:00:12.4]} 42. Ke4 {[%clk 0:00:04.9]} 42... Rh2 {[%clk 0:00:13.3]} 43. Kd4
{[%clk 0:00:02]} 43... Rxh4+ {[%clk 0:00:13.5]} 44. e4 {[%clk 0:00:02.9]} 44...
Rf4 {[%clk 0:00:12.9]} 45. c5 {[%clk 0:00:03.8]} 45... bxc5+ {[%clk 0:00:12.8]}
46. Kxc5 {[%clk 0:00:04.7]} 46... Ke5 {[%clk 0:00:12.7]} 47. c4 {[%clk
0:00:04.8]} 47... h5 {[%clk 0:00:13]} 48. Kb5 {[%clk 0:00:03.9]} 48... h4 {[%clk
0:00:12.8]} 49. c5 {[%clk 0:00:04.8]} 49... Rf2 {[%clk 0:00:06.9]} 50. c6 {[%clk
0:00:05.1]} 50... Rc2 {[%clk 0:00:07.5]} 51. Ka6 {[%clk 0:00:02.9]} 51... h3
{[%clk 0:00:07.3]} 52. Kb7 {[%clk 0:00:01.5]} 52... h2 {[%clk 0:00:07.7]} 53. c7
{[%clk 0:00:02.4]} 53... Rxc7+ {[%clk 0:00:06]} 54. Kxc7 {[%clk 0:00:03.3]}
54... h1=Q {[%clk 0:00:06.6]} 55. a5 {[%clk 0:00:03.7]} 55... Qg1 {[%clk
0:00:07.1]} 56. Kb7 {[%clk 0:00:02.7]} 56... f5 {[%clk 0:00:06.5]} 57. exf5
{[%clk 0:00:02.3]} 57... Kxd5 {[%clk 0:00:06.6]} 58. Ka6 {[%clk 0:00:02.6]}
58... Ke5 {[%clk 0:00:06.7]} 59. f6 {[%clk 0:00:03.5]} 59... Kxf6 {[%clk
0:00:06.5]} 60. Kb7 {[%clk 0:00:04.3]} 60... Ke6 {[%clk 0:00:06.9]} 61. Ka6
{[%clk 0:00:05.2]} 61... Kd6 {[%clk 0:00:07]} 62. Kb7 {[%clk 0:00:05.6]} 62...
Qc5 {[%clk 0:00:06.6]} 63. Ka6 {[%clk 0:00:06.5]} 63... Qc6+ {[%clk 0:00:06]}
64. Kxa7 {[%clk 0:00:06.8]} 64... Kc7 {[%clk 0:00:06.4]} 65. a6 {[%clk
0:00:06.3]} 65... Qb6+ {[%clk 0:00:06.9]} 66. Ka8 {[%clk 0:00:06.7]} 66... Qxa6#
{[%clk 0:00:07.8]} 0-1

[Event "Early-Titled-Tuesday-Blitz-November-28-2023"]
[Site "Chess.com"]
[Date "2023.11.28"]
[Round "11"]
[White "Witik"]
[Black "MatthewG-p4p"]
[Result "0-1"]
[WhiteElo "2795"]
[BlackElo "2944"]
[TimeControl "180+1"]
[EndTime "10:12:47 PST"]
[Termination "MatthewG-p4p won on time"]

1. e4 {[%clk 0:02:58.1]} 1... e6 {[%clk 0:02:53.2]} 2. d3 {[%clk 0:02:58]} 2...
d5 {[%clk 0:02:53.4]} 3. Qe2 {[%clk 0:02:58.4]} 3... Nf6 {[%clk 0:02:53.5]} 4.
Nf3 {[%clk 0:02:58.9]} 4... c5 {[%clk 0:02:53.9]} 5. g3 {[%clk 0:02:59.2]} 5...
Be7 {[%clk 0:02:53.9]} 6. Bg2 {[%clk 0:02:59.8]} 6... Nc6 {[%clk 0:02:54.3]} 7.
O-O {[%clk 0:03:00.4]} 7... O-O {[%clk 0:02:54.8]} 8. e5 {[%clk 0:03:01.1]} 8...
Ne8 {[%clk 0:02:55.2]} 9. c4 {[%clk 0:03:01.8]} 9... Nc7 {[%clk 0:02:54.3]} 10.
Nc3 {[%clk 0:03:01.9]} 10... Rb8 {[%clk 0:02:53.8]} 11. Bf4 {[%clk 0:02:59.3]}
11... b5 {[%clk 0:02:44.3]} 12. b3 {[%clk 0:02:59.4]} 12... Ba6 {[%clk
0:02:36.1]} 13. Rad1 {[%clk 0:02:47.6]} 13... Nd4 {[%clk 0:02:23.8]} 14. Nxd4
{[%clk 0:02:42.6]} 14... cxd4 {[%clk 0:02:24.7]} 15. Nxb5 {[%clk 0:02:09.5]}
15... Bxb5 {[%clk 0:02:24.6]} 16. cxb5 {[%clk 0:02:09.3]} 16... Nxb5 {[%clk
0:02:25.5]} 17. Qg4 {[%clk 0:02:07.8]} 17... Re8 {[%clk 0:02:15.9]} 18. h4
{[%clk 0:02:04.5]} 18... Rc8 {[%clk 0:02:08.9]} 19. Rd2 {[%clk 0:02:00]} 19...
Qc7 {[%clk 0:02:04.4]} 20. h5 {[%clk 0:01:51.2]} 20... Kh8 {[%clk 0:01:32.1]}
21. Bf3 {[%clk 0:01:50.5]} 21... Qd7 {[%clk 0:01:29.6]} 22. h6 {[%clk
0:01:47.7]} 22... g5 {[%clk 0:01:09.6]} 23. Bxg5 {[%clk 0:01:36.1]} 23... Rg8
{[%clk 0:01:06.5]} 24. Bxe7 {[%clk 0:01:36.3]} 24... Qxe7 {[%clk 0:00:48.9]} 25.
Qf4 {[%clk 0:01:31.6]} 25... Qg5 {[%clk 0:00:47.8]} 26. Qxg5 {[%clk 0:01:24.8]}
26... Rxg5 {[%clk 0:00:47.8]} 27. Kg2 {[%clk 0:01:16.9]} 27... Rxe5 {[%clk
0:00:45.8]} 28. Rh1 {[%clk 0:01:13.2]} 28... Rg5 {[%clk 0:00:28]} 29. Rh4 {[%clk
0:01:13.1]} 29... Rg6 {[%clk 0:00:28.1]} 30. a4 {[%clk 0:01:13]} 30... Nd6
{[%clk 0:00:27.4]} 31. Rxd4 {[%clk 0:01:11.7]} 31... Rxh6 {[%clk 0:00:24.7]} 32.
Rb4 {[%clk 0:01:06.4]} 32... Kg7 {[%clk 0:00:21.7]} 33. Re2 {[%clk 0:00:57.1]}
33... Rc3 {[%clk 0:00:21.3]} 34. Rd2 {[%clk 0:00:45.8]} 34... Rg6 {[%clk
0:00:16.8]} 35. Rb8 {[%clk 0:00:43.3]} 35... Nf5 {[%clk 0:00:17.2]} 36. Kf1
{[%clk 0:00:43.6]} 36... Nd4 {[%clk 0:00:17.4]} 37. Bd1 {[%clk 0:00:40.6]} 37...
Rf6 {[%clk 0:00:13.4]} 38. Kg2 {[%clk 0:00:39.7]} 38... a5 {[%clk 0:00:09.3]}
39. b4 {[%clk 0:00:37]} 39... Nc6 {[%clk 0:00:07.9]} 40. Rb5 {[%clk 0:00:28.3]}
40... axb4 {[%clk 0:00:07.5]} 41. Rb6 {[%clk 0:00:24.9]} 41... e5 {[%clk
0:00:06.9]} 42. Bh5 {[%clk 0:00:16.8]} 42... h6 {[%clk 0:00:05.9]} 43. Rb5
{[%clk 0:00:15.5]} 43... Rd6 {[%clk 0:00:05.8]} 44. Bf3 {[%clk 0:00:15.5]} 44...
Nd4 {[%clk 0:00:05.8]} 45. Rxb4 {[%clk 0:00:05.8]} 45... Ra3 {[%clk 0:00:05.9]}
46. Bd1 {[%clk 0:00:05]} 46... Kf6 {[%clk 0:00:04.5]} 47. f4 {[%clk 0:00:05]}
47... Nc6 {[%clk 0:00:05.1]} 48. fxe5+ {[%clk 0:00:04.4]} 48... Kxe5 {[%clk
0:00:06]} 49. Rh4 {[%clk 0:00:04.9]} 49... Ke6 {[%clk 0:00:03.9]} 50. Re2+
{[%clk 0:00:05]} 50... Kd7 {[%clk 0:00:03.6]} 51. Rf2 {[%clk 0:00:05.7]} 51...
Ke7 {[%clk 0:00:03.6]} 52. Bh5 {[%clk 0:00:05.6]} 52... f6 {[%clk 0:00:02.8]}
53. Rg4 {[%clk 0:00:05.2]} 53... Ne5 {[%clk 0:00:01.8]} 54. Rg7+ {[%clk
0:00:05.8]} 54... Kd8 {[%clk 0:00:02.7]} 55. Rb2 {[%clk 0:00:05.5]} 55... Rc6
{[%clk 0:00:02.8]} 56. Rb8+ {[%clk 0:00:05.4]} 56... Rc8 {[%clk 0:00:03.6]} 57.
Rg8+ {[%clk 0:00:06]} 57... Ke7 {[%clk 0:00:03.5]} 58. Rgxc8 {[%clk 0:00:06.6]}
58... Nxd3 {[%clk 0:00:04.2]} 59. Rb6 {[%clk 0:00:06.4]} 59... Ra2+ {[%clk
0:00:04.2]} 60. Kh3 {[%clk 0:00:05.9]} 60... Nf2+ {[%clk 0:00:04.2]} 61. Kh4
{[%clk 0:00:06.4]} 61... Rxa4+ {[%clk 0:00:04.9]} 62. g4 {[%clk 0:00:06.4]}
62... Ra3 {[%clk 0:00:05.8]} 63. Rb7+ {[%clk 0:00:01.1]} 63... Kd6 {[%clk
0:00:05.9]} 0-1

[Event "Early-Titled-Tuesday-Blitz-November-28-2023"]
[Site "Chess.com"]
[Date "2023.11.28"]
[Round "11"]
[White "AryanTari"]
[Black "Hovik_Hayrapetyan"]
[Result "1-0"]
[WhiteElo "2972"]
[BlackElo "2805"]
[TimeControl "180+1"]
[EndTime "10:12:49 PST"]
[Termination "AryanTari won by resignation"]

1. c4 {[%clk 0:02:52.9]} 1... e6 {[%clk 0:02:59.3]} 2. Nc3 {[%clk 0:02:41.3]}
2... d5 {[%clk 0:02:59.1]} 3. d4 {[%clk 0:02:40.7]} 3... Nf6 {[%clk 0:02:58]} 4.
cxd5 {[%clk 0:02:38.6]} 4... exd5 {[%clk 0:02:57.6]} 5. Bg5 {[%clk 0:02:39.2]}
5... Be7 {[%clk 0:02:51]} 6. e3 {[%clk 0:02:39.1]} 6... O-O {[%clk 0:02:50]} 7.
Bd3 {[%clk 0:02:37.4]} 7... c6 {[%clk 0:02:47]} 8. h3 {[%clk 0:02:32.5]} 8...
Nbd7 {[%clk 0:02:42.4]} 9. Qc2 {[%clk 0:02:30.4]} 9... a5 {[%clk 0:02:35.6]} 10.
Nf3 {[%clk 0:02:27.3]} 10... Re8 {[%clk 0:02:29.7]} 11. Bf4 {[%clk 0:02:20.1]}
11... Nf8 {[%clk 0:02:25.8]} 12. O-O {[%clk 0:02:17.6]} 12... Ng6 {[%clk
0:02:25]} 13. Bh2 {[%clk 0:02:17.7]} 13... Bd6 {[%clk 0:02:24.4]} 14. Bxd6
{[%clk 0:02:13.4]} 14... Qxd6 {[%clk 0:02:25.3]} 15. Na4 {[%clk 0:02:10.5]}
15... Ne4 {[%clk 0:02:17]} 16. Nb6 {[%clk 0:01:48.7]} 16... Rb8 {[%clk
0:02:15.8]} 17. Qa4 {[%clk 0:01:47.7]} 17... Qf6 {[%clk 0:01:36.2]} 18. Nxd5
{[%clk 0:01:46.4]} 18... Qd8 {[%clk 0:01:28.1]} 19. Nc3 {[%clk 0:01:42.6]} 19...
Ng5 {[%clk 0:01:24.1]} 20. Nxg5 {[%clk 0:01:34.6]} 20... Qxg5 {[%clk 0:01:25]}
21. f4 {[%clk 0:01:33.6]} 21... Qh6 {[%clk 0:01:09.2]} 22. Rae1 {[%clk
0:01:25.6]} 22... Bxh3 {[%clk 0:01:03.7]} 23. gxh3 {[%clk 0:01:24.5]} 23... Qxh3
{[%clk 0:01:04.6]} 24. Qc2 {[%clk 0:00:52.4]} 24... Nh4 {[%clk 0:00:43.3]} 25.
Qh2 {[%clk 0:00:46.7]} 25... Nf3+ {[%clk 0:00:30.8]} 26. Rxf3 {[%clk 0:00:44.9]}
26... Qxf3 {[%clk 0:00:31.7]} 27. Qxh7+ {[%clk 0:00:43.6]} 27... Kf8 {[%clk
0:00:32]} 28. Qh8+ {[%clk 0:00:35.3]} 28... Ke7 {[%clk 0:00:32]} 29. Qh4+ {[%clk
0:00:35.9]} 29... g5 {[%clk 0:00:23.7]} 30. Qxg5+ {[%clk 0:00:31.9]} 30... Kd6
{[%clk 0:00:19.2]} 31. Be4 {[%clk 0:00:19.2]} 31... Qh3 {[%clk 0:00:08]} 32. Bg2
{[%clk 0:00:18.1]} 32... Qh7 {[%clk 0:00:05.6]} 33. Qf6+ {[%clk 0:00:18.3]}
33... Kc7 {[%clk 0:00:05.2]} 34. Rc1 {[%clk 0:00:16.1]} 34... Re6 {[%clk
0:00:05.1]} 35. Nd5+ {[%clk 0:00:14.1]} 35... Kd6 {[%clk 0:00:03.6]} 36. Qg5
{[%clk 0:00:12]} 36... Rg8 {[%clk 0:00:04.2]} 37. Nf6 {[%clk 0:00:11.1]} 37...
Rxg5 {[%clk 0:00:01.3]} 38. Nxh7 {[%clk 0:00:11.8]} 38... Rg3 {[%clk 0:00:01.5]}
39. Ng5 {[%clk 0:00:10.7]} 39... Rexe3 {[%clk 0:00:02.1]} 40. Kf2 {[%clk
0:00:10.4]} 40... Rd3 {[%clk 0:00:02.5]} 41. Ne4+ {[%clk 0:00:10.6]} 41... Kc7
{[%clk 0:00:02.9]} 42. Nxg3 {[%clk 0:00:11.2]} 42... Rd2+ {[%clk 0:00:03.8]} 43.
Kf3 {[%clk 0:00:11.3]} 43... Rxb2 {[%clk 0:00:04.7]} 44. Ne4 {[%clk 0:00:11]}
44... Rxa2 {[%clk 0:00:05]} 45. Ng5 {[%clk 0:00:11.3]} 45... a4 {[%clk
0:00:05.2]} 46. Nxf7 {[%clk 0:00:11.4]} 46... a3 {[%clk 0:00:05.8]} 47. Rc3
{[%clk 0:00:11.1]} 47... b5 {[%clk 0:00:06]} 48. f5 {[%clk 0:00:10.5]} 48... b4
{[%clk 0:00:06.3]} 49. Re3 {[%clk 0:00:07.7]} 49... Rb2 {[%clk 0:00:05.5]} 50.
f6 {[%clk 0:00:03.5]} 50... a2 {[%clk 0:00:05.2]} 51. Re7+ {[%clk 0:00:04.1]}
51... Kb6 {[%clk 0:00:04.1]} 52. Re1 {[%clk 0:00:03.6]} 52... Rb1 {[%clk
0:00:04.1]} 53. Rxb1 {[%clk 0:00:01.6]} 53... axb1=Q {[%clk 0:00:05]} 54. Ne5
{[%clk 0:00:02.1]} 54... Qf5+ {[%clk 0:00:05.1]} 55. Ke3 {[%clk 0:00:02.6]}
55... Qxf6 {[%clk 0:00:05.6]} 56. Nd7+ {[%clk 0:00:03]} 56... Kb5 {[%clk
0:00:05.2]} 57. Nxf6 {[%clk 0:00:03.9]} 57... Kc4 {[%clk 0:00:04.7]} 58. Bxc6
{[%clk 0:00:03.9]} 58... b3 {[%clk 0:00:05.2]} 59. Be4 {[%clk 0:00:04.5]} 59...
b2 {[%clk 0:00:04.2]} 60. d5 {[%clk 0:00:05]} 60... Kc5 {[%clk 0:00:04.5]} 61.
Kf4 {[%clk 0:00:05.5]} 61... Kd6 {[%clk 0:00:05.4]} 62. Kf5 {[%clk 0:00:06.1]}
62... Ke7 {[%clk 0:00:05.6]} 63. Ke5 {[%clk 0:00:06.5]} 63... Kd8 {[%clk
0:00:05.6]} 64. Bb1 {[%clk 0:00:07.4]} 64... Ke7 {[%clk 0:00:05.3]} 65. d6+
{[%clk 0:00:07.8]} 65... Kf7 {[%clk 0:00:05.6]} 66. d7 {[%clk 0:00:06.9]} 66...
Ke7 {[%clk 0:00:06.5]} 67. Kd5 {[%clk 0:00:07.4]} 67... Kd8 {[%clk 0:00:07.1]}
68. Ke6 {[%clk 0:00:07.8]} 1-0